Cogmind - Beta 13 @@@ ROGUE MODE // 2024.05.15 @ 22:56:55 Player: GayPredator Result: Destroyed by H-88 Terminator with KE Penetrator Performance ------------- Evolutions (8) 4000 Regions Visited (20) 4000 Robots Destroyed (230) 1150 Value Destroyed (15166) 15166 Prototype IDs (9) 180 Alien Tech Used (0) 0 Bonus (9584) 9584 TOTAL SCORE: 34080 Bonus ------- High Alert Combat Kills 946 Follower Combat Kills 3252 Entered Garrisons 1400 Used RIF Installer 4500 Aligned with FarCom 300 Friendly Fire -814 Cogmind --------- Core Integrity 0/1450 Matter 13/300 Energy 336/340 System Corruption 18% Temperature Cool (0) Movement Rolling (90) Location -2/Research Parts ------- > --- POWER (2) -------- Particle Reactor > --- PROPULSION (4) --- Centrium Wheel Centrium Wheel Centrium Wheel Centrium Wheel > --- UTILITY (13) ----- Medium Storage Unit Nanoactuators ECM Suite Advanced Reaction Control System Hacking Suite Advanced System Shield Advanced System Shield Relay Coupler [Swarmer] (6) Relay Coupler [Grunt] (5) Relay Coupler [Heavy] (6) > --- WEAPON (4) ------- (None) > --- INVENTORY (10) --- Centrium Wheel Centrium Wheel Diametric Drive Diametric Drive Recoil Nullifier Advanced Datajack Peak State ------------ > --- POWER ------------ Quantum Reactor Quantum Reactor > --- PROPULSION ------- Armored Huge Wheel Centrium Wheel Centrium Wheel > --- UTILITY ---------- Huge Storage Unit Advanced Matter Compressor Improved Trap Scanner Advanced Signal Interpreter Experimental Shock Absorption System EM Disruption Field Advanced Force Field System Shield Relay Coupler [Swarmer] Relay Coupler [Grunt] Relay Coupler [Sentry] Relay Coupler [Hunter] Relay Coupler [Heavy] > --- WEAPON ----------- Hardcell Cannon Heavy Linear Accelerator Advanced Remote Datajack > --- INVENTORY -------- Armored Huge Wheel Centrium Wheel Energy Well Advanced Signal Interpreter Advanced Signal Interpreter Improved Recalibrator Improved Field Recycling Unit Hardcell Cannon Rocket Array Rocket Array Rocket Array Micro-nuke Launcher Micro-nuke Launcher Fusion Bomb Launcher Advanced Datajack Improved Remote Datajack Advanced Remote Datajack Falx [Rating: 148] Favorites ----------- Power Quantum Reactor Engine Angular Momentum Engine Power Core Reinforced Fission Core Reactor Quantum Reactor Propulsion Armored Huge Wheel Treads Light Treads Leg Myomer Leg Wheel Armored Huge Wheel Utility Huge Storage Unit Device Recoil Stabilizer Storage Huge Storage Unit Processor Advanced Signal Interpreter Hackware Relay Coupler [Sentry] Protection Hardened Medium Armor Plating Weapon Hardcell Cannon Energy Gun Improved Medium Laser Energy Cannon Particle Cannon Ballistic Gun Assault Rifle Ballistic Cannon Hardcell Cannon Launcher Micro-nuke Launcher Special Weapon Improved Remote Datajack Slashing Weapon Falx Special Melee Weapon Improved Datajack Build | -11 -10 -10 -10 -9 -8 -8 -8 -8 -7 -7 -6 -6 -5 -5 -5 -5 -4 -4 -3 -2 ------- Run | Yrd Mat Min Exi Min Mat Gar Mat Gar Fac Gar Fac Gar Fac Gar Fac Gar Fac Gar Res Res Slots Evolved 16 | . . . . . 4 . . . 2 . 2 . 2 . . . 2 . 2 2 Power 1 | . . . . . . . . . . . . . . . . . . . . 1 Propulsion 2 | . . . . . 1 . . . 1 . . . . . . . . . . . Utility 11 | . . . . . 2 . . . 1 . 2 . 2 . . . 1 . 2 1 Weapon 2 | . . . . . 1 . . . . . . . . . . . 1 . . . Parts Attached 406 | 7 13 3 1 2 17 12 29 5 23 24 39 21 4 16 10 29 18 12 24 97 Power 26 | 1 1 1 . . . 1 2 . 2 . 1 1 . 1 . 2 1 . 1 11 Engine 8 | 1 1 1 . . . . 1 . 2 . 1 1 . . . . . . . . Core 5 | . . . . . . 1 1 . . . . . . . . 1 . . 1 1 Reactor 13 | . . . . . . . . . . . . . . 1 . 1 1 . . 10 Propulsion 39 | 2 1 . . . 1 . 5 . 4 . 3 . . . . 1 1 1 . 20 Treads 11 | 2 1 . . . 1 . 3 . 2 . . . . . . . . . . 2 Leg 3 | . . . . . . . . . . . . . . . . . . . . 3 Wheel 25 | . . . . . . . 2 . 2 . 3 . . . . 1 1 1 . 15 Hover . | . . . . . . . . . . . . . . . . . . . . . Flight . | . . . . . . . . . . . . . . . . . . . . . Utility 198 | 2 3 2 . . 6 4 11 1 12 11 22 10 3 11 4 13 11 10 21 41 Device 105 | 1 2 2 . . 3 3 2 1 6 2 12 5 2 4 3 5 8 3 9 32 Storage 8 | 1 1 . . . . . 1 . 1 1 . . . . . . . . . 3 Processor 3 | . . . . . 1 . . . 1 . . . . . . . . . 1 . Hackware 50 | . . . . . . . 2 . 2 7 6 3 1 6 1 7 2 5 4 4 Protection 32 | . . . . . 2 1 6 . 2 1 4 2 . 1 . 1 1 2 7 2 Artifact . | . . . . . . . . . . . . . . . . . . . . . Weapon 143 | 2 8 . 1 2 10 7 11 4 5 13 13 10 1 4 6 13 5 1 2 25 Energy Gun 7 | . . . . . 3 3 1 . . . . . . . . . . . . . Energy Cannon 13 | . 4 . . 2 3 1 . . . . . . . . . . . . . 3 Ballistic Gun 4 | 2 1 . . . . . . . . . . . . . . . . . . 1 Ballistic Cannon 41 | . . . . . . . 3 2 2 5 7 5 . 1 2 3 3 1 1 6 Launcher 24 | . 2 . . . 3 3 . 1 . 1 2 . . . . 2 1 . . 9 Special Weapon 39 | . 1 . 1 . 1 . 4 1 . 6 4 4 1 2 3 5 1 . 1 4 Impact Weapon . | . . . . . . . . . . . . . . . . . . . . . Slashing Weapon 1 | . . . . . . . . . . . . . . . . . . . . 1 Piercing Weapon . | . . . . . . . . . . . . . . . . . . . . . Special Melee Weapon 14 | . . . . . . . 3 . 3 1 . 1 . 1 1 3 . . . 1 Unidentified Prototypes 7 | . . . 1 . 2 . . . . . 1 . . . . . . . . 3 Parts Lost 67 | . . 1 . . . 1 2 . 1 3 2 3 . . . 3 2 3 3 43 Power 8 | . . 1 . . . . . . . . . 1 . . . . . . 1 5 Propulsion 9 | . . . . . . . 1 . . . . . . . . 1 . 1 . 6 Utility 32 | . . . . . . 1 . . 1 3 2 2 . . . 2 2 1 2 16 Weapon 18 | . . . . . . . 1 . . . . . . . . . . 1 . 16 Highest Loss Streak 11 | . . 1 . . . 1 1 . 1 2 1 2 . . . 2 1 2 2 11 To Critical Strikes 1 | . . . . . . . . . . . . . . . . . . . . 1 Average Slot Usage (%) 85 | . 99 99 71 100 93 99 97 100 86 83 81 73 76 75 75 80 86 88 88 86 Engine 4 | . 14 13 14 14 9 3 7 9 6 7 6 5 5 4 . . . . . . Reactor 2 | . . . . . . . . . . . . . . . 5 3 . 5 3 6 Treads 6 | . 28 28 28 28 21 27 17 27 5 . . . . . . . . . . . Wheel 9 | . . . . . . . 8 . 12 15 13 13 11 11 11 10 10 10 9 11 Device 10 | . 14 14 14 14 17 15 12 18 8 3 5 6 8 4 5 6 11 11 14 12 Storage 7 | . 14 14 14 14 9 9 9 9 7 12 6 6 5 5 5 5 5 5 4 7 Processor 1 | . . . . . 6 9 . . . . . . . . . . . . . 3 Hackware 18 | . . . . . . . 3 . 12 9 21 17 25 28 28 27 30 30 28 27 Protection 5 | . . . . . 2 2 9 9 8 11 7 7 5 5 5 4 1 3 5 1 Energy Cannon 2 | . 22 28 . 28 20 15 7 . . . . . . . . . . . . . Ballistic Cannon 10 | . . . . . . . 2 25 21 16 16 9 5 5 5 9 14 14 14 5 Special Weapon 2 | . 1 . . . 2 . 3 . . 4 2 2 5 3 4 3 3 5 4 3 Naked Turns . | . . . . . . . . . . . . . . . . . . . . . Heaviest Build 203 | 12 32 32 24 32 41 41 52 53 121 124 142 148 144 162 170 170 159 168 177 203 Greatest Support 110 | 40 40 40 40 40 60 60 69 69 69 56 56 56 56 56 56 56 56 56 56 110 Greatest Overweight (x) 66 | . . . . . 1 . 5 . 3 2 2 2 2 2 3 4 5 2 3 66 Average Overweight (x) 1 | . . . . . . . 1 . 1 1 1 2 2 2 2 2 3 2 2 2 Largest Inventory Capacity 25 | 8 15 15 15 15 15 15 15 15 25 25 25 25 25 25 25 25 25 25 25 25 Average Capacity 21 | 7 14 15 15 15 15 15 15 15 22 25 25 25 25 25 25 25 25 25 25 22 Most Carried 25 | 5 9 9 14 15 15 15 15 15 25 25 24 25 25 25 25 25 25 25 25 25 Average Carried 19 | 3 7 8 10 12 13 14 13 14 19 23 21 23 24 24 24 23 21 22 22 16 Final Capacity 25 | 8 15 15 15 15 15 15 15 15 25 25 25 25 25 25 25 25 25 25 25 10 Final Carried 25 | 4 9 8 14 15 14 15 15 15 24 21 24 25 25 25 25 22 22 21 19 6 Class Distribution -------------------- 22% | Botlord-Skirmisher 16% | Botlord-Tank 14% | Bothacker-Skirmisher 11% | Skirmisher 8% | Mutant 6% | Bothacker-Tank 5% | Bothacker-Mutant 4% | Botlord-Mutant 4% | Botlord-Gunner 3% | Bothacker-Gunner 3% | Tank Dominant Class ---------------- Mutant | -10/Materials Mutant | -10/Mines Mutant | -10/Exiles Mutant | -9/Mines Skirmisher | -8/Materials Skirmisher | -8/Garrison Tank | -8/Materials Bothacker-Tank | -8/Garrison Bothacker-Skirmisher | -7/Factory Bothacker-Skirmisher | -7/Garrison Skirmisher | -6/Factory Bothacker-Skirmisher | -6/Garrison Botlord-Gunner | -5/Factory Botlord-Skirmisher | -5/Garrison Botlord-Skirmisher | -5/Factory Botlord-Skirmisher | -5/Garrison Botlord-Skirmisher | -4/Factory Botlord-Tank | -4/Garrison Botlord-Tank | -3/Research Botlord-Tank | -2/Research Resources | -11 -10 -10 -10 -9 -8 -8 -8 -8 -7 -7 -6 -6 -5 -5 -5 -5 -4 -4 -3 -2 ----------- Run | Yrd Mat Min Exi Min Mat Gar Mat Gar Fac Gar Fac Gar Fac Gar Fac Gar Fac Gar Res Res Matter Collected 10589 | 298 164 21 10 20 111 304 238 734 486 844 621 902 293 627 235 909 200 590 708 2274 Remotely 610 | . . . . . . . . . . . . 610 . . . . . . . . Salvage Created 6919 | 112 115 219 . 39 228 450 264 599 273 231 362 496 91 73 120 250 151 362 386 2098 Parts 354 | 9 11 7 . 5 9 26 16 33 25 15 14 20 9 4 8 5 7 10 21 100 Haulers Intercepted 4 | . . . . . 1 . 1 . 1 . . . . . . . . . . 1 Recyclers Shooed 4 | 1 . . . . . . . . . . . . . . . . . . . 3 Parts Field Recycled 90 | . . . . . . . . . . . 35 . . . . . 10 . . 45 Retrieved Matter 1587 | . . . . . . . . . . . 315 . . . . . 186 . . 1086 Parts Self-Destructed . | . . . . . . . . . . . . . . . . . . . . . Prevented . | . . . . . . . . . . . . . . . . . . . . . Kills | -11 -10 -10 -10 -9 -8 -8 -8 -8 -7 -7 -6 -6 -5 -5 -5 -5 -4 -4 -3 -2 ------- Run | Yrd Mat Min Exi Min Mat Gar Mat Gar Fac Gar Fac Gar Fac Gar Fac Gar Fac Gar Res Res Combat Hostiles Destroyed 174 | . 6 4 . 1 2 16 4 21 6 7 7 19 2 3 2 8 7 6 8 45 Melee 1 | . . . . . . 1 . . . . . . . . . . . . . . Guns 5 | . . . . . . 3 2 . . . . . . . . . . . . . Cannons 118 | . 4 4 . 1 2 3 2 17 6 7 6 19 2 3 2 5 5 6 8 16 AOE 49 | . 2 . . . . 9 . 4 . . 1 . . . . 3 2 . . 28 Classes Destroyed 19 | 2 3 . . 1 2 2 . . 1 1 . 1 . . . 1 1 . . 4 Worker 8 | . . . . . . . . . . . . . . . . . . . . 8 Builder 21 | . . . . 1 1 . . . 2 . . . 2 . 1 . . . . 14 Tunneler 4 | 2 . . . . . . . . 1 . 1 . . . . . . . . . Hauler 4 | . . . . . 1 . 1 . 1 . . . . . . . . . . 1 Recycler 7 | 1 . 1 . . 1 . . . . . 1 . . . . . . . . 3 Mechanic 1 | . . . . . . . . . . . . . . . . . . . . 1 Operator 1 | . . . . . . . . . . . . . . . . . . . . 1 Watcher 6 | . 1 . . . . . . . 1 . 1 . . . . . . . . 3 Swarmer 23 | . 4 . . 1 . 3 . 3 . . 1 6 . . . . . . 1 4 Cutter 1 | . . . . . . . . . . 1 . . . . . . . . . . Grunt 72 | . 2 4 . . 1 11 3 12 . 3 1 12 1 2 . 3 4 3 . 10 Brawler 5 | . . . . . . . . . . . . 1 1 . . . . 2 . 1 Duelist 3 | . . . . . . . . . . . . . . . . 1 . . . 2 Sentry 24 | . . . . . 1 . 1 4 2 3 1 . . . 2 3 . . 1 6 Specialist 2 | . . . . . . 1 . . . . . . . . . 1 . . . . Hunter 11 | . . . . . . 1 . 2 . . 1 . . . . . . . 2 5 Programmer 35 | . . . . . . . . . 4 . 4 . . 1 1 . 2 2 4 17 Heavy 1 | . . . . . . . . . . . . . . . . . 1 . . . Behemoth 1 | . . . . . . . . . . . . . . . . . . . . 1 Best Kill Streak 16 | 2 5 2 . 2 3 3 2 5 2 2 3 4 3 2 2 3 4 2 3 16 Combat Bots Only 10 | . 5 2 . 1 1 3 2 5 1 2 1 4 1 2 1 3 4 2 3 10 Max Kills in Single Turn 6 | 1 2 1 . 2 1 3 1 1 1 1 1 1 3 1 2 2 2 1 1 6 Gunslinging . | . . . . . . . . . . . . . . . . . . . . . Exploded 6 | . 2 . . . . 3 . 1 . . 1 . . . . 2 2 . . 6 Melee 1 | . . . . . . 1 . . . . . . . . . . . . . . Uniques/NPCs Destroyed . | . . . . . . . . . . . . . . . . . . . . . Combat | -11 -10 -10 -10 -9 -8 -8 -8 -8 -7 -7 -6 -6 -5 -5 -5 -5 -4 -4 -3 -2 -------- Run | Yrd Mat Min Exi Min Mat Gar Mat Gar Fac Gar Fac Gar Fac Gar Fac Gar Fac Gar Res Res Hostile Shots Fired 1364 | . 37 18 . 3 7 38 31 39 66 124 83 105 1 21 24 99 36 57 52 523 Missed 435 | . 9 5 . 1 5 12 6 12 28 47 24 38 . 4 6 31 7 20 13 167 Damage Taken 17674 | . 317 172 . 16 31 359 358 356 407 899 1063 1003 19 284 468 1301 1112 704 1154 7651 Core 2777 | . 18 41 . . . 57 24 42 75 92 91 75 . 54 . 137 304 53 253 1461 Absorbed by Shields 1455 | . . . . . . 47 32 23 . . 48 . . . . 20 . 29 10 1246 Reduced by Siege Mode 19 | . . . . . . . . . . . . . . . . . . . . 19 Redirected to Shielding 208 | . . . . . . . . . 12 22 9 60 . . . 38 . . 53 14 Ignored by Resistances 637 | . . . . . . . . . . . . . . . . . 41 . 26 570 Regen/Repaired (Parts) 129 | . 22 . . . . . . . 107 . . . . . . . . . . . Core Remaining (%) 79 | 100 . . . 76 . . . 77 . 76 . 80 . . . 80 . 68 80 . Volleys Fired 785 | 7 15 11 . 1 10 29 35 43 40 51 52 58 29 39 21 68 25 51 39 161 Largest 3 | 2 2 2 . 2 3 3 2 3 3 3 3 3 1 2 2 3 3 3 3 3 Hottest 226 | 40 136 136 . 136 204 199 124 132 136 136 154 154 83 136 136 175 195 195 196 226 Shots Fired 1291 | 14 28 22 . 2 22 65 51 105 84 79 88 81 29 42 29 96 58 73 76 247 Gun 50 | 14 2 . . . 1 17 16 . . . . . . . . . . . . . Cannon 941 | . 22 22 . 2 16 35 20 94 84 54 62 73 12 31 20 70 49 48 60 167 Launcher 83 | . 3 . . . 2 13 . 8 . 2 3 . . . . 2 1 . . 49 Special 217 | . 1 . . . 3 . 15 3 . 23 23 8 17 11 9 24 8 25 16 31 Kinetic 825 | 14 2 . . . . . . 94 84 54 62 73 12 31 20 70 49 48 60 152 Thermal 188 | . 23 22 . 2 20 52 51 3 . . . . . . . . . . . 15 Explosive 83 | . 3 . . . 2 13 . 8 . 2 3 . . . . 2 1 . . 49 Electromagnetic . | . . . . . . . . . . . . . . . . . . . . . Robot Hit Streak 14 | 6 4 5 . 3 14 11 7 8 11 8 11 11 6 7 8 13 5 10 13 12 Robot Miss Streak 8 | 1 3 2 . . 2 1 4 4 3 3 5 8 2 5 5 4 2 4 5 7 Penetration Max 1 | . . . . . . . . . . . . 1 . . . . . . . . Secondary Targets . | . . . . . . . . . . . . . . . . . . . . . Shots Hit Robots 749 | 9 10 12 . 1 14 39 22 49 44 45 47 54 15 27 21 63 36 36 41 164 Core Hits 523 | 5 9 7 . 2 7 28 9 37 15 12 25 52 2 5 13 21 21 9 12 232 Critical Kills 1 | . . . . . . . . . . . . . . . . . . . . 1 Critical Parts Destroyed . | . . . . . . . . . . . . . . . . . . . . . Critical Strikes 35 | . . . . . . 1 1 . 4 1 1 3 1 . . 6 3 2 1 11 Burn 2 | . . . . . . 1 1 . . . . . . . . . . . . . Meltdown 1 | . . . . . . . . . . . . . . . . . . . . 1 Blast 29 | . . . . . . . . . 4 1 1 3 1 . . 6 3 2 1 7 Sever 3 | . . . . . . . . . . . . . . . . . . . . 3 Melee Attacks 51 | . . . . . . . 5 . 11 . . . . 10 . 4 . . . 21 Impact . | . . . . . . . . . . . . . . . . . . . . . Slashing 21 | . . . . . . . . . . . . . . . . . . . . 21 Piercing . | . . . . . . . . . . . . . . . . . . . . . Sneak Attacks 25 | . . . . . . . 1 . 7 . . . . 10 . 2 . . . 5 Combat Hostiles . | . . . . . . . . . . . . . . . . . . . . . Follow-up Attacks . | . . . . . . . . . . . . . . . . . . . . . Damage Inflicted 31389 | 88 420 312 . 45 472 1488 359 1489 1061 872 1110 2293 402 435 864 2195 1745 919 1095 13725 Guns 470 | 88 8 . . . 18 183 173 . . . . . . . . . . . . . Cannons 19607 | . 202 287 . 41 230 429 186 1114 1022 731 862 2293 217 435 864 1937 1261 919 1095 5482 Explosions 10355 | . 210 . . . 224 875 . 375 . 141 248 . 185 . . 258 484 . . 7355 Melee 888 | . . . . . . . . . . . . . . . . . . . . 888 Ramming 69 | . . 25 . 4 . 1 . . 39 . . . . . . . . . . . Kinetic 17856 | 88 8 . . . . . . 1114 1022 731 862 2293 217 435 864 1937 1261 919 1095 5010 Thermal 2406 | . 202 287 . 41 248 612 359 . . . . . 185 . . . . . . 472 Explosive 10170 | . 210 . . . 224 875 . 375 . 141 248 . . . . 258 484 . . 7355 Electromagnetic . | . . . . . . . . . . . . . . . . . . . . . Impact . | . . . . . . . . . . . . . . . . . . . . . Slashing 888 | . . . . . . . . . . . . . . . . . . . . 888 Piercing . | . . . . . . . . . . . . . . . . . . . . . Highest Corruption 18 | . 2 2 2 2 . . . . 2 1 3 . . 1 3 1 8 6 2 18 Average Corruption 6 | . 1 2 2 2 . . . . 1 1 1 . . 1 2 1 3 6 1 10 Corruption Purged 20 | . . . . . . . . . 3 1 4 . . 1 3 1 2 . 2 3 Corruption Blocked . | . . . . . . . . . . . . . . . . . . . . . Effects 213 | . . 6 6 . . . . . 3 2 3 . . . 6 3 10 33 2 139 Message Errors 63 | . . 1 3 . . . . . . 1 1 . . . 1 1 4 11 . 40 Matter Fused 36 | . . . . . . . . . . . . . . . . . 1 5 1 29 Heat Flow Errors 33 | . . 2 2 . . . . . 1 . 1 . . . 1 1 2 5 . 18 Energy Discharges 17 | . . 1 . . . . . . . . 1 . . . 1 1 2 4 1 6 Parts Rejected 2 | . . . . . . . . . . . . . . . . . . . . 2 Parts Fused 6 | . . . . . . . . . 1 . . . . . . . . . . 5 Data Loss (minor) 20 | . . . 1 . . . . . 1 1 . . . . 2 . . 2 . 13 Data Loss (major) 4 | . . . . . . . . . . . . . . . . . . 1 . 3 Misfires 15 | . . 1 . . . . . . . . . . . . . . 1 3 . 10 Alerts 5 | . . . . . . . . . . . . . . . . . . 1 . 4 Misdirections 4 | . . . . . . . . . . . . . . . . . . . . 4 Weapon Failures 8 | . . 1 . . . . . . . . . . . . 1 . . 1 . 5 Overload Shots . | . . . . . . . . . . . . . . . . . . . . . Overflow Damage 1481 | . . . . . 17 4 . 20 20 9 38 147 105 29 51 100 86 . 64 791 Projectiles 966 | . . . . . 7 . . 20 17 9 38 147 . 29 51 93 85 . 64 406 Explosions 258 | . . . . . 10 4 . . . . . . 105 . . 7 1 . . 131 Melee 257 | . . . . . . . . . 3 . . . . . . . . . . 254 Knockbacks 113 | . . . . . . . . 10 3 6 7 28 . 3 4 12 11 3 3 23 Impact . | . . . . . . . . . . . . . . . . . . . . . Kinetic 109 | . . . . . . . . 10 3 6 7 27 . 3 4 12 10 2 3 22 Secondary 4 | . . . . . . . . . . . . 1 . . . . 1 1 . 1 Self-Inflicted Damage 750 | . 30 . . . . 14 . . 19 46 . . . . . 48 108 . . 485 Shots 40 | . 1 . . . . 2 . . . 1 . . . . . 2 6 . . 28 Rammed 7 | . . 3 . 1 1 . . . 2 . . . . . . . . . . . Targets Rammed 9 | . . 4 . 1 1 1 . . 2 . . . . . . . . . . . Kicked . | . . . . . . . . . . . . . . . . . . . . . Crushed 2 | . . 1 . . . 1 . . . . . . . . . . . . . . Highest Temperature 823 | . 370 420 231 45 135 287 384 280 378 363 400 360 71 162 469 560 823 290 576 595 Average Temperature 135 | . 174 146 100 26 58 112 121 72 104 113 107 98 25 37 137 179 270 106 189 152 Received Heat Transfer 2686 | . 54 96 . . 18 138 159 165 18 240 45 204 9 72 63 366 67 27 433 512 Effects 92 | . 1 . . . . 3 2 1 2 2 2 1 . . 4 12 20 . 10 32 Shutdowns 23 | . 1 . . . . . 1 . 1 1 1 . . . 2 5 4 . 2 5 Energy Bleed 15 | . . . . . . . 1 1 . . . 1 . . 1 2 4 . . 5 Interference 26 | . . . . . . 3 . . . . 1 . . . . 2 1 . 6 13 Matter Decay 6 | . . . . . . . . . 1 . . . . . . 1 3 . . 1 Short Circuit 6 | . . . . . . . . . . . . . . . . 2 . . . 4 Damage (minor) 6 | . . . . . . . . . . 1 . . . . 1 . 3 . . 1 Damage (major) 6 | . . . . . . . . . . . . . . . . . 4 . 1 1 Damage (core) 4 | . . . . . . . . . . . . . . . . . 1 . 1 2 Siege Activations 1 | . . . . . . . . . . . . . . . . . . . . 1 Total Turns 8 | . . . . . . . . . . . . . . . . . . . . 8 Longest Duration 8 | . . . . . . . . . . . . . . . . . . . . 8 Robots Corrupted . | . . . . . . . . . . . . . . . . . . . . . Combat Hostiles . | . . . . . . . . . . . . . . . . . . . . . Parts Fried . | . . . . . . . . . . . . . . . . . . . . . Impact Corruptions 2 | . . . . . . . . . 1 . . 1 . . . . . . . . Robots Melted 1 | . . . . . . . . . . . . . . . . . . . . 1 Combat Hostiles 1 | . . . . . . . . . . . . . . . . . . . . 1 Parts Melted 6 | . 1 2 . 1 . . 1 . . . . . . . . . . . . 1 Heat Transferred 3985 | . 370 518 . 74 444 1258 777 . . . . . 100 . . . . . . 444 Parts Sabotaged 2 | . . . . . . . . . . . . . . . . 2 . . . . Parts Stolen . | . . . . . . . . . . . . . . . . . . . . . Parts Stripped . | . . . . . . . . . . . . . . . . . . . . . Power Chain Reactions . | . . . . . . . . . . . . . . . . . . . . . Alert | -11 -10 -10 -10 -9 -8 -8 -8 -8 -7 -7 -6 -6 -5 -5 -5 -5 -4 -4 -3 -2 ------- Run | Yrd Mat Min Exi Min Mat Gar Mat Gar Fac Gar Fac Gar Fac Gar Fac Gar Fac Gar Res Res Peak Influence 1200 | 15 309 164 . 25 155 692 457 780 416 490 350 552 464 293 172 238 180 305 243 1200 Initial 409 | . 9 44 . . 9 62 337 97 409 37 256 56 289 91 153 . 117 31 171 60 Average 215 | 5 127 87 . 9 47 456 309 506 125 193 130 286 293 171 91 184 80 123 112 344 Maximum Alert Level 4 | . 1 . . . . 2 2 3 2 2 1 2 2 1 . 1 . 1 1 4 Low Security (%) 59 | 100 81 100 . 100 100 5 12 13 71 53 79 43 10 80 100 43 100 81 91 41 Level 1 23 | . 18 . . . . 30 76 13 12 39 20 27 83 19 . 56 . 18 8 19 Level 2 12 | . . . . . . 64 11 61 16 6 . 29 5 . . . . . . 19 Level 3 2 | . . . . . . . . 11 . . . . . . . . . . . 12 Level 4 . | . . . . . . . . . . . . . . . . . . . . 5 Level 5 . | . . . . . . . . . . . . . . . . . . . . . High Security . | . . . . . . . . . . . . . . . . . . . . . Max Security . | . . . . . . . . . . . . . . . . . . . . . Squads Dispatched 51 | . 2 . . . 1 . . . 5 . 9 . 3 . 1 . 7 . 4 19 Investigation 7 | . 1 . . . . . . . 2 . 2 . . . . . 1 . . 1 Extermination 17 | . . . . . . . . . 3 . 4 . . . 1 . 1 . 2 6 Reinforcement 20 | . 1 . . . . . . . . . 3 . 3 . . . 5 . 1 7 Assault 2 | . . . . . . . . . . . . . . . . . . . . 2 Garrison 5 | . . . . . 1 . . . . . . . . . . . . . 1 3 Intercept . | . . . . . . . . . . . . . . . . . . . . . Searches Triggered . | . . . . . . . . . . . . . . . . . . . . . Construction Impeded 9 | . . . . . . . . . . . 3 . 1 . . . 1 . . 4 Haulers Reinforced 2 | . . . . . . . . . . . . . 1 . . . . . . 1 Active Scanning Responses . | . . . . . . . . . . . . . . . . . . . . . Cargo Convoy Interrupts . | . . . . . . . . . . . . . . . . . . . . . Alert ID Control Effect 66 | . . . . . . . . . . . . . 9 15 3 8 1 13 6 11 Stealth | -11 -10 -10 -10 -9 -8 -8 -8 -8 -7 -7 -6 -6 -5 -5 -5 -5 -4 -4 -3 -2 --------- Run | Yrd Mat Min Exi Min Mat Gar Mat Gar Fac Gar Fac Gar Fac Gar Fac Gar Fac Gar Res Res Distress Signals 18 | . 1 . . . 3 . 3 . 1 . 1 . 1 . . . . . 1 7 Communications Jammed . | . . . . . . . . . . . . . . . . . . . . . Distress Signals . | . . . . . . . . . . . . . . . . . . . . . Times Spotted 421 | . 11 4 . 3 5 13 15 21 17 27 24 29 16 25 9 38 8 28 22 106 Peak Tracking Total 13 | . 5 2 . 3 3 3 3 4 2 5 5 7 5 6 2 10 5 6 5 13 Tactical Retreats 22 | . 2 . . . . . 1 2 1 3 1 3 . 1 . 1 1 2 1 3 Traps | -11 -10 -10 -10 -9 -8 -8 -8 -8 -7 -7 -6 -6 -5 -5 -5 -5 -4 -4 -3 -2 ------- Run | Yrd Mat Min Exi Min Mat Gar Mat Gar Fac Gar Fac Gar Fac Gar Fac Gar Fac Gar Res Res Traps Triggered 34 | . 4 . . . . 1 1 3 . 5 . 2 . 4 . 3 5 6 . . Indirectly 2 | . . . . . . . . . . . . . . . . . 2 . . . Trap Hack Attempts 47 | . . . . . . . . . . 5 . 27 . . 3 4 . . . 8 Triggered 1 | . . . . . . . . . . 1 . . . . . . . . . . Disarmed 3 | . . . . . . . . . . 1 . . . . 1 1 . . . . Reprogrammed 6 | . . . . . . . . . . . . 5 . . . . . . . 1 Reused 1 | . . . . . . . . . . . . . . . . . . . . 1 Traps Extracted . | . . . . . . . . . . . . . . . . . . . . . Installed . | . . . . . . . . . . . . . . . . . . . . . Triggered 1 | . . . . . . . . . . . . . . . . . . . . 1 Machines | -11 -10 -10 -10 -9 -8 -8 -8 -8 -7 -7 -6 -6 -5 -5 -5 -5 -4 -4 -3 -2 ---------- Run | Yrd Mat Min Exi Min Mat Gar Mat Gar Fac Gar Fac Gar Fac Gar Fac Gar Fac Gar Res Res Machines Disabled 61 | . . . . . 4 3 1 5 2 3 . 4 6 5 . 5 4 5 4 10 Max in Single Turn 6 | . . . . . 1 1 1 1 1 1 . 1 6 1 . 1 1 1 . 1 Garrison Access 6 | . . . . . . . . . . . . . . . 1 . . . 1 4 Garrison Relay 24 | . . . . . . 2 . 4 . 3 . 4 . 3 . 4 . 4 . . Machines Repaired . | . . . . . . . . . . . . . . . . . . . . . Machines Dismantled . | . . . . . . . . . . . . . . . . . . . . . Machines Sabotaged . | . . . . . . . . . . . . . . . . . . . . . Overloaded Fab Kills . | . . . . . . . . . . . . . . . . . . . . . Hacking | -11 -10 -10 -10 -9 -8 -8 -8 -8 -7 -7 -6 -6 -5 -5 -5 -5 -4 -4 -3 -2 --------- Run | Yrd Mat Min Exi Min Mat Gar Mat Gar Fac Gar Fac Gar Fac Gar Fac Gar Fac Gar Res Res Machines Accessed 91 | . 5 . 1 . 2 3 3 2 15 5 13 5 4 1 8 1 7 . 6 10 Terminals 50 | . 4 . . . 1 3 2 2 8 5 6 5 1 1 4 1 2 . 2 3 Fabricators 13 | . . . . . . . . . 3 . 4 . 1 . 1 . 2 . 1 1 Repair Stations 7 | . 1 . . . . . . . 2 . 1 . . . . . 2 . . 1 Recycling Units 3 | . . . . . . . . . 1 . . . . . . . . . 1 1 Scanalyzers 4 | . . . . . . . . . . . 1 . 1 . 1 . . . 1 . Garrison Access 13 | . . . . . 1 . 1 . 1 . 1 . 1 . 2 . 1 . 1 4 Total Hacks 225 | . 9 . 1 . 6 8 7 5 35 12 36 13 21 1 24 4 12 . 15 16 Successful 115 | . 5 . 1 . 2 2 4 1 24 4 17 4 17 1 13 . 5 . 8 7 Failed 110 | . 4 . . . 4 6 3 4 11 8 19 9 4 . 11 4 7 . 7 9 Catastrophic 17 | . . . . . . 2 . 2 1 2 1 1 . . 3 . 2 . . 3 Database Lockouts . | . . . . . . . . . . . . . . . . . . . . . Manual 67 | . 3 . 1 . 5 . 6 . 15 . 14 . 1 . 11 . 1 . 6 4 Terminals 134 | . 7 . . . 5 8 6 5 22 12 18 13 3 1 16 4 3 . 6 5 Fabricators 34 | . . . . . . . . . 7 . 11 . 3 . 3 . 4 . 5 1 Repair Stations 15 | . 2 . . . . . . . 4 . 2 . . . . . 4 . . 3 Recycling Units 5 | . . . . . . . . . 1 . . . . . . . . . 1 3 Scanalyzers 23 | . . . . . . . . . . . 4 . 14 . 3 . . . 2 . Garrison Access 13 | . . . . . 1 . 1 . 1 . 1 . 1 . 2 . 1 . 1 4 Terminal Hacks 37 | . 2 . 1 . . 2 1 1 9 4 5 4 1 1 5 . . . . 1 Record 3 | . . . 1 . . . . . . . 1 . . . . . . . . 1 Part Schematic 9 | . . . . . . . . . 6 . 2 . . . 1 . . . . . Open Door 1 | . . . . . . . . . . . . 1 . . . . . . . . Branch Access Points 1 | . 1 . . . . . . . . . . . . . . . . . . . Emergency Access Points 4 | . . . . . . 1 . . . 1 . 1 . 1 . . . . . . Terminal Index 3 | . . . . . . . 1 . 1 . . . . . 1 . . . . . Fabricator Index 1 | . . . . . . . . . . . . . . . 1 . . . . . Garrison Index 1 | . . . . . . . . . . . . . . . 1 . . . . . Unreport Threat 1 | . . . . . . . . . 1 . . . . . . . . . . . Locate Traps 1 | . . . . . . . . . . . 1 . . . . . . . . . Reinforcement Status 1 | . . . . . . . . . 1 . . . . . . . . . . . Recall Reinforcements 1 | . 1 . . . . . . . . . . . . . . . . . . . Zone Layout 3 | . . . . . . . . . . . 1 . 1 . 1 . . . . . Garrison Registry 2 | . . . . . . . . . . 1 . 1 . . . . . . . . Patrol Navigation 3 | . . . . . . . . 1 . 1 . 1 . . . . . . . . Security Stations 2 | . . . . . . 1 . . . 1 . . . . . . . . . . Fabricator Hacks 21 | . . . . . . . . . 6 . 6 . 2 . 1 . 3 . 2 1 Network Status 6 | . . . . . . . . . 1 . 1 . 1 . . . 1 . 1 1 Load Schematic 10 | . . . . . . . . . 3 . 3 . 1 . 1 . 1 . 1 . Build 5 | . . . . . . . . . 2 . 2 . . . . . 1 . . . Repair Station Hacks 9 | . 2 . . . . . . . 4 . 1 . . . . . 1 . . 1 Scan Component 6 | . 1 . . . . . . . 2 . 1 . . . . . 1 . . 1 Repair 3 | . 1 . . . . . . . 2 . . . . . . . . . . . Recycling Unit Hacks 2 | . . . . . . . . . 1 . . . . . . . . . 1 . Report Inventory 2 | . . . . . . . . . 1 . . . . . . . . . 1 . Scanalyzer 18 | . . . . . . . . . . . 2 . 12 . 2 . . . 2 . Insert Component 9 | . . . . . . . . . . . 1 . 6 . 1 . . . 1 . Analyze 9 | . . . . . . . . . . . 1 . 6 . 1 . . . 1 . Garrison Access Hacks 13 | . . . . . 1 . 1 . 1 . 1 . 1 . 2 . 1 . 1 4 Unlock Access 7 | . . . . . 1 . 1 . 1 . 1 . 1 . 1 . 1 . . . Seal Access 6 | . . . . . . . . . . . . . . . 1 . . . 1 4 Unauthorized Hacks 15 | . 1 . . . 1 . 2 . 3 . 2 . 1 . 3 . . . 2 . Terminals 15 | . 1 . . . 1 . 2 . 3 . 2 . 1 . 3 . . . 2 . Assimilate 3 | . . . . . 1 . . . 1 . . . . . . . . . 1 . Botnet 11 | . 1 . . . . . 2 . 2 . 2 . 1 . 2 . . . 1 . Operators 1 | . . . . . . . . . . . . . . . 1 . . . . . Fabricators . | . . . . . . . . . . . . . . . . . . . . . Repair Stations . | . . . . . . . . . . . . . . . . . . . . . Recycling Units . | . . . . . . . . . . . . . . . . . . . . . Scanalyzers . | . . . . . . . . . . . . . . . . . . . . . Garrison Access . | . . . . . . . . . . . . . . . . . . . . . Data Cores Recovered . | . . . . . . . . . . . . . . . . . . . . . Used . | . . . . . . . . . . . . . . . . . . . . . Hacking Detections 72 | . 4 . . . 2 3 2 2 11 5 12 1 3 1 7 1 7 . 5 6 Full Trace Events 16 | . . . . . . 3 . 2 2 3 2 1 . . . 1 1 . . 1 Feedback Events . | . . . . . . . . . . . . . . . . . . . . . Feedback Blocked . | . . . . . . . . . . . . . . . . . . . . . Robot Schematics Acquired . | . . . . . . . . . . . . . . . . . . . . . Robots Built . | . . . . . . . . . . . . . . . . . . . . . Authchips . | . . . . . . . . . . . . . . . . . . . . . Time . | . . . . . . . . . . . . . . . . . . . . . Total Robot Build Rating . | . . . . . . . . . . . . . . . . . . . . . Part Schematics Acquired 16 | . . . . . . . . . 6 . 3 . 4 . 2 . . . 1 . Parts Built 8 | . . . . . . . . . 3 . 3 . . . . . 2 . . . Authchips . | . . . . . . . . . . . . . . . . . . . . . Time 336 | . . . . . . . . . 126 . 126 . . . . . 84 . . . Total Part Build Rating 32 | . . . . . . . . . 12 . 12 . . . . . 8 . . . Parts Repaired 3 | . 1 . . . . . . . 2 . . . . . . . . . . . Time 102 | . 26 . . . . . . . 76 . . . . . . . . . . . Parts Recycled . | . . . . . . . . . . . . . . . . . . . . . Recycled Matter . | . . . . . . . . . . . . . . . . . . . . . Retrieved Matter . | . . . . . . . . . . . . . . . . . . . . . Retrieved Components . | . . . . . . . . . . . . . . . . . . . . . Parts Scanalyzed 8 | . . . . . . . . . . . 1 . 5 . 1 . . . 1 . Part Schematics Acquired 7 | . . . . . . . . . . . 1 . 4 . 1 . . . 1 . Parts Damaged 1 | . . . . . . . . . . . . . 1 . . . . . . . Bothacking | -11 -10 -10 -10 -9 -8 -8 -8 -8 -7 -7 -6 -6 -5 -5 -5 -5 -4 -4 -3 -2 ------------ Run | Yrd Mat Min Exi Min Mat Gar Mat Gar Fac Gar Fac Gar Fac Gar Fac Gar Fac Gar Res Res Used RIF Installer 9 | . . . . . . 2 . 1 . 2 . 1 . 1 . 1 . 1 . . Coupler Efficiency 1 | . . . . . . . . 1 . . . . . . . . . . . . Code Merge 2 | . . . . . . . . . . 1 . . . . . . . 1 . . Threat Obfuscator 2 | . . . . . . 1 . . . . . . . 1 . . . . . . Robot Detection 1 | . . . . . . . . . . 1 . . . . . . . . . . Alert ID Control 1 | . . . . . . . . . . . . 1 . . . . . . . . Autoassimilate 1 | . . . . . . . . . . . . . . . . 1 . . . . Robots Hacked 134 | . . . . . . . 3 . 9 11 15 7 9 10 7 16 5 12 11 19 Non-combat 35 | . . . . . . . 2 . 9 . 7 . 5 1 3 . 3 . 4 1 Combat 99 | . . . . . . . 1 . . 11 8 7 4 9 4 16 2 12 7 18 Autoassimilated 3 | . . . . . . . . . . . . . . . . . . . . 3 Robot Hacks Applied 141 | . . . . . . . 3 . 9 11 15 7 12 10 7 17 6 13 12 19 no_distress 5 | . . . . . . . . . 3 . . . . . . . 1 . 1 . find_chute 3 | . . . . . . . . . 1 . 1 . . . . . 1 . . . ignore_repairs 7 | . . . . . . . . . 2 . . . 2 . . . . . 3 . map_walls 4 | . . . . . . . 1 . 1 . . . 1 . 1 . . . . . map_earth 1 | . . . . . . . . . . . . . . . 1 . . . . . find_fabricator 2 | . . . . . . . . . . . . . 1 . . . 1 . . . drop_inventory 4 | . . . . . . . . . . . 2 . 1 . . . 1 . . . find_recycling 1 | . . . . . . . . . . . . . . . 1 . . . . . ignore_parts 4 | . . . . . . . . . . . 2 . . . . . . . . 2 purge_threat 1 | . . . . . . . . . . . . . 1 . . . . . . . map_route 6 | . . . . . . . 1 . 2 . 2 . 1 . . . . . . . find_garrison 1 | . . . . . . . . . . . . . . . . . . . . 1 reboot_propulsion 1 | . . . . . . . . . . . . . . . . . . 1 . . overload_power 1 | . . . . . . . . . . 1 . . . . . . . . . . amplify_resonance 7 | . . . . . . . . . . . 2 . . . . . . 1 . 4 disable_weapons 1 | . . . . . . . . . . . . . . . . . 1 . . . reboot_system 6 | . . . . . . . . . . 1 1 . 1 1 . . . 1 . 1 go_dormant 3 | . . . . . . . . . . . . . . . 2 . . . . 1 overwrite_iff 28 | . . . . . . . . . . 4 2 6 2 . . 6 . 6 1 1 streamctrl_high 13 | . . . . . . . . . . 1 1 . . 1 1 4 . 1 2 2 formatsys_low 2 | . . . . . . . . . . . . . 1 1 . . . . . . formatsys_high 40 | . . . . . . . 1 . . 4 2 1 1 7 1 7 1 3 5 7 Relay Couplers Released 97 | . . . . . . 9 . 15 4 11 . 14 . 12 . 17 . 15 . . Machine Destruction 93 | . . . . . . 9 . 15 . 11 . 14 . 12 . 17 . 15 . . Programmers 4 | . . . . . . . . . 4 . . . . . . . . . . . Attached 39 | . . . . . . . 2 . 1 7 3 3 1 6 1 7 1 5 2 . Merged Code Value 314 | . . . . . . . . . . 35 . 50 . 105 . 4 . 120 . . Fabnet Peak Effective % . | . . . . . . . . . . . . . . . . . . . . . Robots Rewired 5 | . . . . . . . . . . . . . . 3 . 2 . . . . Allies Hacked 8 | . . . . . . . . . . . . . . 3 1 . . 1 . 3 Hacks Repelled . | . . . . . . . . . . . . . . . . . . . . . Allies | -11 -10 -10 -10 -9 -8 -8 -8 -8 -7 -7 -6 -6 -5 -5 -5 -5 -4 -4 -3 -2 -------- Run | Yrd Mat Min Exi Min Mat Gar Mat Gar Fac Gar Fac Gar Fac Gar Fac Gar Fac Gar Res Res Total Allies 100 | . . 2 . . . . 1 . 1 13 5 9 4 14 2 18 1 10 7 13 Largest Group 8 | . . 2 2 . . . 1 1 1 3 2 3 5 8 3 5 2 4 3 4 Highest-Rated Group 389 | . . 48 48 . . . 15 15 26 80 90 116 174 389 163 332 149 190 226 232 Highest-Rated Ally 137 | . . 31 31 . . . 15 15 26 34 90 46 46 85 137 137 137 56 137 137 Total Orders 37 | . . . . . . . . . 22 3 1 . 2 2 2 1 . 1 2 1 STAY 17 | . . . . . . . . . 11 1 . . . 1 1 1 . . 1 1 ROAM 4 | . . . . . . . . . . 1 1 . . 1 . . . . 1 . FOLLOW 13 | . . . . . . . . . 11 1 . . . . 1 . . . . . AID 3 | . . . . . . . . . . . . . 2 . . . . 1 . . Ally Attacks 551 | . . . . . . . . 9 . 43 12 17 68 70 12 116 12 67 41 84 Total Damage 19051 | . . . . . . . . 131 . 1396 286 357 1742 2612 568 3539 659 2708 2831 2222 Kills 106 | . . . . . . . . 2 . 7 3 1 11 19 3 16 1 14 18 11 Allies Corrupted 7 | . . . . . . . . . . . . . . 3 . . . 1 1 2 Allies Melted . | . . . . . . . . . . . . . . . . . . . . . Field Lobotomies 4 | . . . . . . . . . . 4 . . . . . . . . . . Intel | -11 -10 -10 -10 -9 -8 -8 -8 -8 -7 -7 -6 -6 -5 -5 -5 -5 -4 -4 -3 -2 ------- Run | Yrd Mat Min Exi Min Mat Gar Mat Gar Fac Gar Fac Gar Fac Gar Fac Gar Fac Gar Res Res Robot Analysis Total . | . . . . . . . . . . . . . . . . . . . . . Derelict Logs Recovered . | . . . . . . . . . . . . . . . . . . . . . Drone Launches . | . . . . . . . . . . . . . . . . . . . . . Drone Recoveries . | . . . . . . . . . . . . . . . . . . . . . Exploration | -11 -10 -10 -10 -9 -8 -8 -8 -8 -7 -7 -6 -6 -5 -5 -5 -5 -4 -4 -3 -2 ------------- Run | Yrd Mat Min Exi Min Mat Gar Mat Gar Fac Gar Fac Gar Fac Gar Fac Gar Fac Gar Res Res Turns Passed 24248 | 117 625 596 504 75 470 957 911 1145 2498 1398 1928 1162 596 1393 842 1529 1062 1232 1364 3844 Spaces Moved 14034 | 49 308 345 310 40 205 509 505 596 1708 859 1204 625 367 875 546 868 564 738 731 2082 Core 17 | 4 . . . . . . . . . . . . . . . . . . . 13 Treads 2757 | 45 308 345 310 40 205 509 249 596 13 . . . . . . . . . . 137 Legs 27 | . . . . . . . . . . . . . . . . . . . . 27 Wheels 11233 | . . . . . . . 256 . 1695 859 1204 625 367 875 546 868 564 738 731 1905 Hover . | . . . . . . . . . . . . . . . . . . . . . Flight . | . . . . . . . . . . . . . . . . . . . . . Fastest Speed 50 | 50 160 160 160 160 160 160 95 160 115 115 115 130 130 130 130 130 130 130 130 50 Average Speed 138 | 151 160 160 160 160 163 160 134 160 126 127 127 130 130 130 130 137 153 130 142 140 Slowest Speed 3350 | 160 160 160 160 160 240 160 160 160 160 130 130 130 130 130 145 160 175 130 145 3350 Overloaded Moves . | . . . . . . . . . . . . . . . . . . . . . Propulsion Burnouts . | . . . . . . . . . . . . . . . . . . . . . Robots Hopped . | . . . . . . . . . . . . . . . . . . . . . Cave-ins Triggered . | . . . . . . . . . . . . . . . . . . . . . Exploration Rate (%) 42 | 4 55 59 62 15 16 52 28 70 38 82 32 68 13 70 15 77 12 77 16 35 Regions Visited 20 Branch Regions 3 Pre-discovered Areas 1 | . . . 1 . . . . . . . . . . . . . . . . . Known Exits Taken 9 | . 1 . . . 1 . 1 . 1 . 1 . 1 . 1 . 1 . 1 . Unknown Exits Taken 4 | 1 . 1 1 1 . . . . . . . . . . . . . . . . Scrap Searched 2 | . . 1 . 1 . . . . . . . . . . . . . . . . Spaces Dug 73 | . 1 . . . 3 . 14 . 8 . 3 . 8 2 1 . . 1 4 28 Terrain Destroyed 1273 | . 18 . . . 79 105 14 48 14 10 32 14 37 8 5 75 35 8 28 743 Melee 4 | . . . . . . . . . . . . . . . . . . . . 4 Projectile 213 | . 2 . . . 3 1 14 . 14 . 11 14 9 8 5 24 14 8 28 58 AOE 1056 | . 16 . . . 76 104 . 48 . 10 21 . 28 . . 51 21 . . 681 Terrain Rammed . | . . . . . . . . . . . . . . . . . . . . . Walls Destroyed . | . . . . . . . . . . . . . . . . . . . . . Machines Disabled . | . . . . . . . . . . . . . . . . . . . . . Actions | -11 -10 -10 -10 -9 -8 -8 -8 -8 -7 -7 -6 -6 -5 -5 -5 -5 -4 -4 -3 -2 --------- Run | Yrd Mat Min Exi Min Mat Gar Mat Gar Fac Gar Fac Gar Fac Gar Fac Gar Fac Gar Res Res Total 17697 | 77 408 364 319 49 313 596 651 699 1975 1091 1524 883 465 1084 642 1113 720 967 1009 2748 Wait 1838 | 8 59 2 3 1 70 36 51 44 157 106 182 122 53 103 53 110 83 107 192 296 Move 14020 | 48 307 344 309 39 205 508 505 595 1707 858 1204 624 367 874 546 867 564 737 730 2082 Hop . | . . . . . . . . . . . . . . . . . . . . . Pick Up 166 | 6 8 . 3 4 2 4 7 6 17 5 20 11 7 5 4 6 5 4 9 33 Fast Attach 119 | 6 2 . 1 . 6 2 14 . 9 3 7 . . 7 . 7 5 5 2 43 Attach 122 | 1 1 1 . 2 4 1 3 . 3 4 12 11 3 2 2 6 8 5 14 39 Detach 50 | . . . 3 . 3 1 2 . . 1 4 4 . . 1 1 4 2 7 17 Swap 165 | . 10 2 . . 7 9 12 5 11 17 20 10 1 7 8 16 5 2 8 15 Drop 181 | 1 6 . . 1 5 5 17 6 18 8 23 8 5 13 4 9 5 6 8 33 Fire 785 | 7 15 11 . 1 10 29 35 43 40 51 52 58 29 39 21 68 25 51 39 161 Melee 51 | . . . . . . . 5 . 11 . . . . 10 . 4 . . . 21 Ram 2 | . . . . . . . . . 2 . . . . . . . . . . . Kick . | . . . . . . . . . . . . . . . . . . . . . Crush 7 | . . 4 . 1 1 1 . . . . . . . . . . . . . . Escape Stasis 144 | . . . . . . . . . . 33 . 8 . 24 . 15 16 48 . . Rewire . | . . . . . . . . . . . . . . . . . . . . . Trap 47 | . . . . . . . . . . 5 . 27 . . 3 4 . . . 8 Miscellaneous . | . . . . . . . . . . . . . . . . . . . . . Route ------- -11/Scrapyard -10/Materials (discovered 3 exits: [*Mat x2] / *Min) -10/Mines (discovered 2 exits: [*Mat] / *Exi) -10/Exiles -9/Mines -8/Materials -8/Garrison (discovered 2 exits: *Mat x2) -8/Materials -8/Garrison (discovered 3 exits: *Fac x3) -7/Factory -7/Garrison (discovered 3 exits: *Fac x3) -6/Factory (discovered 3 exits: [*Low x2] / Gar) -6/Garrison (discovered 3 exits: *Fac x3) -5/Factory -5/Garrison (discovered 2 exits: *Fac x2) -5/Factory -5/Garrison (discovered 3 exits: *Fac x3) -4/Factory -4/Garrison (discovered 3 exits: *Res x3) -3/Research (discovered 2 exits: *Res / [*Arm]) -2/Research History --------- Turn | Location | Event 17 | -11/Scrapyard | Discovered new exit (range 16) 118 | -11/Scrapyard | Entered Materials 316 | -10/Materials | Build established: Mutant 431 | -10/Materials | Discovered new exit (range 8) 547 | -10/Materials | Discovered new exit (range 16) 694 | -10/Materials | Repaired Heat Sink 719 | -10/Materials | Identified exit to Mines 743 | -10/Materials | Entered Mines 1166 | -10/Mines | Discovered new exit (range 10) 1333 | -10/Mines | Deemed a non-threat by the Exiles lab entrance 1333 | -10/Mines | Discovered new exit (range 5) 1339 | -10/Mines | Entered Exiles 1339 | -10/Exiles | Accompanied by 2 allies 1369 | -10/Exiles | Led the pair of lost Derelicts to a safe place 1383 | -10/Exiles | Met 8R-AWN 1409 | -10/Exiles | Met EX-HEX 1471 | -10/Exiles | Met EX-DEC 1479 | -10/Exiles | Learned location of Zion (-7) 1505 | -10/Exiles | Met EX-BIN 1527 | -10/Exiles | Aligned with FarCom system 1529 | -10/Exiles | Given EX-Vault access code 1566 | -10/Exiles | Opened EX-Vault 1572 | -10/Exiles | Found Prototype Special Weapon 1572 | -10/Exiles | Identified Field Lobotomy Kit 1606 | -10/Exiles | Warned to stay clear of 0b10 Research branches 1820 | -10/Exiles | Discovered new exit (range 15) 1843 | -10/Exiles | Left Exiles lab with Field Lobotomy Kit 1843 | -10/Exiles | Entered Mines 1845 | -9/Mines | Met a Derelict bent on vengeance 1896 | -9/Mines | Discovered new exit (range 5) 1918 | -9/Mines | Entered Materials 1918 | -8/Materials | Evolved 4 slots: Propulsion x1, Utility x2, Weapon x1 2263 | -8/Materials | Build established: Skirmisher 2284 | -8/Materials | Garrison activated, responded to threat 2388 | -8/Materials | Identified exit to Garrison 2388 | -8/Materials | Entered Garrison 2414 | -8/Garrison | Learned Materials security intel 2530 | -8/Garrison | Triggered checkpoint 2594 | -8/Garrison | Installed Relay Interface Framework 2619 | -8/Garrison | Triggered checkpoint 2783 | -8/Garrison | Discovered new exit (range 10) 2832 | -8/Garrison | Triggered checkpoint 2991 | -8/Garrison | Discovered new exit (range 10) 3044 | -8/Garrison | Expanded RIF knowledge: Threat Obfuscation 3214 | -8/Garrison | Triggered checkpoint 3265 | -8/Garrison | Triggered checkpoint 3290 | -8/Garrison | Garrison Relay disabled 3345 | -8/Garrison | Entered Materials 3690 | -8/Materials | Build established: Tank 4256 | -8/Materials | Identified exit to Garrison 4256 | -8/Materials | Entered Garrison 4256 | -8/Garrison | Accompanied by 1 ally 4278 | -8/Garrison | Triggered checkpoint 4351 | -8/Garrison | Garrison Relay disabled 4424 | -8/Garrison | Triggered checkpoint 4431 | -8/Garrison | Triggered checkpoint 4437 | -8/Garrison | Triggered checkpoint 4501 | -8/Garrison | Build established: Skirmisher 4551 | -8/Garrison | Discovered new exit (range 9) 4675 | -8/Garrison | Garrison Relay disabled 4884 | -8/Garrison | Triggered checkpoint 4940 | -8/Garrison | Expanded RIF knowledge: Coupler Efficiency 4977 | -8/Garrison | Discovered new exit (range 8) 4978 | -8/Garrison | Build established: Bothacker-Tank 5010 | -8/Garrison | Triggered checkpoint 5033 | -8/Garrison | Garrison Relay disabled 5230 | -8/Garrison | Discovered new exit (range 11) 5284 | -8/Garrison | Triggered checkpoint 5347 | -8/Garrison | Garrison Relay disabled 5401 | -8/Garrison | Entered Factory 5401 | -7/Factory | Evolved 2 slots: Propulsion x1, Utility x1 5728 | -7/Factory | Build established: Bothacker-Skirmisher 5958 | -7/Factory | Repaired Imp. Datajack? 6213 | -7/Factory | Fabricated Arm. Huge Wheel? 6282 | -7/Factory | Build established: Bothacker-Mutant 6504 | -7/Factory | Repaired Hrd. Medium Armor Plating 6601 | -7/Factory | Build established: Bothacker-Skirmisher 6636 | -7/Factory | Fabricated Remote Datajack (x1) 7846 | -7/Factory | Build established: Bothacker-Gunner 7898 | -7/Factory | Identified exit to Garrison 7899 | -7/Factory | Entered Garrison 7899 | -7/Garrison | Accompanied by 1 ally 7943 | -7/Garrison | Assimilated P-60 Hacker with FLK Orb 7977 | -7/Garrison | Triggered checkpoint 8030 | -7/Garrison | Learned Factory security intel 8094 | -7/Garrison | Assimilated Y-54 Guardian with FLK Orb 8102 | -7/Garrison | Assimilated Y-54 Guardian with FLK Orb 8109 | -7/Garrison | Assimilated Y-54 Guardian with FLK Orb 8133 | -7/Garrison | Lost 3 allies 8149 | -7/Garrison | Garrison Relay disabled 8191 | -7/Garrison | Triggered checkpoint 8287 | -7/Garrison | Expanded RIF knowledge: Code Merge 8413 | -7/Garrison | Spotted B-75 Beast 8413 | -7/Garrison | Spotted B-75 Beast 8427 | -7/Garrison | Triggered checkpoint 8437 | -7/Garrison | Triggered checkpoint 8501 | -7/Garrison | Discovered new exit (range 9) 8553 | -7/Garrison | Triggered checkpoint 8577 | -7/Garrison | Build established: Botlord-Tank 8604 | -7/Garrison | Garrison Relay disabled 8661 | -7/Garrison | Triggered checkpoint 8701 | -7/Garrison | Triggered checkpoint 8807 | -7/Garrison | Discovered new exit (range 12) 8873 | -7/Garrison | Triggered checkpoint 8912 | -7/Garrison | Discovered new exit (range 44) 8912 | -7/Garrison | Discovered new exit (range 18) 8912 | -7/Garrison | Discovered new exit (range 65) 9130 | -7/Garrison | Expanded RIF knowledge: Robot Detection 9168 | -7/Garrison | Triggered checkpoint 9203 | -7/Garrison | Garrison Relay disabled 9297 | -7/Garrison | Entered Factory 9297 | -6/Factory | Accompanied by 1 ally 9297 | -6/Factory | Evolved 2 slots: Utility x2 9318 | -6/Factory | Build established: Bothacker-Skirmisher 9536 | -6/Factory | Discovered new exit (range 39) 9980 | -6/Factory | Fabricated Remote Datajack? 10119 | -6/Factory | Build established: Bothacker-Tank 10599 | -6/Factory | Discovered new exit (range 64) 10655 | -6/Factory | Build established: Skirmisher 10717 | -6/Factory | Found Prototype Launcher 10717 | -6/Factory | Identified Rocket Array 10725 | -6/Factory | Found Rocket Array 10728 | -6/Factory | Found Rocket Array 10730 | -6/Factory | Found Rocket Array 10900 | -6/Factory | Fabricated Arm. Huge Wheel? 11225 | -6/Factory | Identified exit to Garrison 11225 | -6/Factory | Entered Garrison 11249 | -6/Garrison | Discovered new exit (range 35) 11249 | -6/Garrison | Discovered new exit (range 43) 11249 | -6/Garrison | Discovered new exit (range 61) 11293 | -6/Garrison | Triggered checkpoint 11363 | -6/Garrison | Garrison Relay disabled 11639 | -6/Garrison | Lost 3 allies 11721 | -6/Garrison | Triggered checkpoint 11837 | -6/Garrison | Garrison Relay disabled 12138 | -6/Garrison | Rescued a captive Derelict 12140 | -6/Garrison | Rescued a captive Derelict 12159 | -6/Garrison | Triggered checkpoint 12173 | -6/Garrison | Garrison Relay disabled 12224 | -6/Garrison | Expanded RIF knowledge: Alert ID Control 12293 | -6/Garrison | Triggered checkpoint 12344 | -6/Garrison | Garrison Relay disabled 12387 | -6/Garrison | Entered Factory 12387 | -5/Factory | Accompanied by 3 allies 12387 | -5/Factory | Evolved 2 slots: Utility x2 12672 | -5/Factory | Build established: Botlord-Gunner 12983 | -5/Factory | Identified exit to Garrison 12983 | -5/Factory | Entered Garrison 13002 | -5/Garrison | Lost 3 allies 13049 | -5/Garrison | Triggered checkpoint 13073 | -5/Garrison | Garrison Relay disabled 13172 | -5/Garrison | Expanded RIF knowledge: Threat Obfuscation 13276 | -5/Garrison | Spotted B-75 Beast 13279 | -5/Garrison | Assimilated Beast 6a with formatsys_high 13291 | -5/Garrison | Triggered checkpoint 13325 | -5/Garrison | Triggered checkpoint 13326 | -5/Garrison | Triggered checkpoint 13413 | -5/Garrison | Triggered checkpoint 13484 | -5/Garrison | Discovered new exit (range 12) 13492 | -5/Garrison | Found embedded Infiltrators 13552 | -5/Garrison | Garrison Relay disabled 13609 | -5/Garrison | Lost 3 allies 13706 | -5/Garrison | Lost 5 allies 13715 | -5/Garrison | Build established: Botlord-Mutant 13897 | -5/Garrison | Discovered new exit (range 8) 14015 | -5/Garrison | Triggered checkpoint 14065 | -5/Garrison | Garrison Relay disabled 14182 | -5/Garrison | Build established: Botlord-Skirmisher 14311 | -5/Garrison | Triggered checkpoint 14376 | -5/Garrison | Entered Factory 14376 | -5/Factory | Accompanied by 3 allies 15218 | -5/Factory | Identified exit to Garrison 15218 | -5/Factory | Entered Garrison 15218 | -5/Garrison | Accompanied by 2 allies 15436 | -5/Garrison | Triggered checkpoint 15448 | -5/Garrison | Garrison Relay disabled 15486 | -5/Garrison | Heavy support dispatched to Factory 15588 | -5/Garrison | Triggered checkpoint 15769 | -5/Garrison | Spotted B-75 Beast 15792 | -5/Garrison | Allies destroyed B-75 Beast 15840 | -5/Garrison | Lost 3 allies 15902 | -5/Garrison | Triggered checkpoint 15937 | -5/Garrison | Discovered new exit (range 11) 15960 | -5/Garrison | Triggered checkpoint 16025 | -5/Garrison | Lost 4 allies 16078 | -5/Garrison | Garrison Relay disabled 16081 | -5/Garrison | Heavy support dispatched to Factory 16283 | -5/Garrison | Heavy support dispatched to Factory 16312 | -5/Garrison | Discovered new exit (range 10) 16324 | -5/Garrison | Heavy support dispatched to Factory 16338 | -5/Garrison | Triggered checkpoint 16339 | -5/Garrison | Garrison Relay disabled 16377 | -5/Garrison | Lost 4 allies 16502 | -5/Garrison | Triggered checkpoint 16588 | -5/Garrison | Triggered checkpoint 16610 | -5/Garrison | Garrison Relay disabled 16639 | -5/Garrison | Discovered new exit (range 14) 16706 | -5/Garrison | Expanded RIF knowledge: Autoassimilate 16747 | -5/Garrison | Entered Factory 16747 | -4/Factory | Accompanied by 2 allies 16747 | -4/Factory | Evolved 2 slots: Utility x1, Weapon x1 17112 | -4/Factory | Found Hvy. Reflective Plating 17362 | -4/Factory | Fabricated Arm. Huge Wheel (x2) 17809 | -4/Factory | Identified exit to Garrison 17809 | -4/Factory | Entered Garrison 17809 | -4/Garrison | Accompanied by 1 ally 17827 | -4/Garrison | Triggered checkpoint 17835 | -4/Garrison | Garrison Relay disabled 18200 | -4/Garrison | Triggered checkpoint 18213 | -4/Garrison | Spotted B-86 Titan 18280 | -4/Garrison | Lost 3 allies 18455 | -4/Garrison | Triggered checkpoint 18488 | -4/Garrison | Discovered new exit (range 15) 18503 | -4/Garrison | Expanded RIF knowledge: Code Merge 18585 | -4/Garrison | Triggered checkpoint 18591 | -4/Garrison | Build established: Botlord-Tank 18653 | -4/Garrison | Triggered checkpoint 18684 | -4/Garrison | Garrison Relay disabled 18726 | -4/Garrison | Discovered new exit (range 14) 18799 | -4/Garrison | Triggered checkpoint 18902 | -4/Garrison | Discovered new exit (range 11) 18949 | -4/Garrison | Triggered checkpoint 18973 | -4/Garrison | Garrison Relay disabled 19041 | -4/Garrison | Entered Research 19041 | -3/Research | Accompanied by 2 allies 19041 | -3/Research | Evolved 2 slots: Utility x2 19668 | -3/Research | Garrison activated, responded to threat 19719 | -3/Research | Lost 3 allies 19841 | -3/Research | Spotted B-86 Titan 19844 | -3/Research | Assimilated Titan 8a with formatsys_high 20328 | -3/Research | Discovered new exit (range 16) 20376 | -3/Research | Discovered new exit (range 9) 20402 | -3/Research | Identified exit to Research 20405 | -3/Research | Entered another Research area 20405 | -2/Research | Accompanied by 2 allies 20405 | -2/Research | Evolved 2 slots: Power x1, Utility x1 20408 | -2/Research | Spotted B-90 Cyclops 20433 | -2/Research | Destroyed B-90 Cyclops 20445 | -2/Research | Build established: Botlord-Skirmisher 20457 | -2/Research | Found Fusion Bomb Launcher 20538 | -2/Research | Lost 3 parts (1u2w) 20722 | -2/Research | Spotted B-90 Cyclops 21661 | -2/Research | Found Prototype Device 21661 | -2/Research | Identified Exp. Shock Absorption System 21758 | -2/Research | Garrison activated, responded to threat 21791 | -2/Research | System corruption reached 10% 22078 | -2/Research | Build established: Botlord-Tank 22313 | -2/Research | Lost 3 allies 23405 | -2/Research | First assault squad dispatched 23503 | -2/Research | Core integrity fell below 50% 23545 | -2/Research | Lost 11 parts (1p1n4u5w) 23559 | -2/Research | Destroyed 10 combat bots 23603 | -2/Research | Lost 3 parts (2n1w) 23991 | -2/Research | Core integrity fell below 20% 24009 | -2/Research | Found Fusion Bomb Launcher 24043 | -2/Research | Lost 6 parts (2p3u1w) 24134 | -2/Research | Build established: Botlord-Mutant 24249 | -2/Research | Destroyed by H-88 Terminator with KE Penetrator Last Messages --------------- 24233_ Penetrated by Slug. 24235_ U-05 Engineer lays Concrete. 24237_ Biometal Medium Treads destroyed. 24237_ Slug penetrates Wall. 24237_ U-05 Engineer builds a Wall. 24237_ Slug penetrates Wall. 24238_ Penetrated by Slug. 24240_ Nanoactuators destroyed. 24240_ Penetrated by Slug. 24240_ Critical hit (Destroy). 24240_ Biometal Heavy Treads destroyed. 24241_ Penetrated by Slug. 24243_ Quantum Reactor destroyed. 24244_ Penetrated by Slug. 24244_ Slug penetrates H-88 Terminator. 24244_ Penetrated by Slug. 24246_ Slug penetrates Wall. 24246_ Penetrated by Slug. 24247_ Relay Coupler [Sentry] destroyed. 24249_ Penetrated by Slug. Map ----- +----------------------------------------------------+ | # # # # #?????????? | | # # # # #?????????? | | # ## # ### + #?????????? | | # # #### # #?????????? | | ### # ### # ###+#######??????? | | ### # ## # #??????? | | ### # ## # #??????? | | + + ] ### # # #??????? | | # # ### # # #??????? | | # # ### # h # = #??????? | | # ##+######## #hh # !#??????? | | # ########+# # # #??????? | | # ##???## # # #??????? | | ### ####### [ # ###########??????? | | ### ####### ! # #????????????????? | | ### ### # # #????????????????? | | / # #????????????????? | | ########## # # #????????????????? | | ### ## ######### #??#######???????? | | ### ## # # #? ????????? | | ### ## ## # #? ????????? | | ###### # # # """ ????????? | | + !! # # """ ???????? | | ## # !! # R ; """ ???????? | | ## ## !!! # # #??????? | | """" # ####### @# #??????? | | """" ######R #? #??????? | | """" # #+ #+#????# #?#########??????? | | """" ### ????# #????????????????? | | # ???# #????????????????? | | # ! #??# +????????????????? | | + #??# #????????????????? | | # #??# #????????????????? | | # #??# #????????????????? | | #### #########??# ?????????????????? | | ##?# #######????# ?????????????????? | | ##?# #??????????# ?????????????????? | | ##?? #??????????# ?????????????????? | | ##????????????????# R ?????????????????? | | ####????????????????? ?????????????????? | | ####??????????????????? ?????????????????? | | ???????????????????????????????????????????? | | ???????????????????????????????????????????? | | ???????????????????????????????????????????? | | ???????????????????????????????????????????? | | ???????????????????????????????????????????? | | ??????????????????????????????????????????? | | ##?????????????????????????????????????????? | | ???????????????????????????????????????????? | | ???????????????????????????????????????????? | +----------------------------------------------------+ Best States ------------- Heat Dissipation 68 Energy Generation 45 Energy Capacity 950 Matter Stores 700 Matter Capacity 700 Sight Range 16 Robot Scan Range 14 Terrain Scan Range 14 Terrain Scan Density 110 Corruption Block 8 Armor Coverage 600 Resistance: TH 25 Resistance: EX 75 Resistance: EM 25 Propulsion Shielding 66 Melee Speed Boost 50 Evasion (%) 50 Recoil Reduction 7 Matter Filtering 50 Kinecelleration 40 Offensive Hacking 12 Defensive Hacking 28 Relay Coupler Types 7 Relay Coupler Value 260 Item Schematics ----------------- Hcp. Storage Unit | -7/Factory | Hacked Arm. Huge Wheel | -7/Factory | Hacked Huge Storage Unit | -7/Factory | Hacked Remote Datajack | -7/Factory | Hacked Imp. Datajack | -7/Factory | Hacked Hrd. Heavy Armor Plating | -7/Factory | Hacked Hvy. Missile Launcher | -6/Factory | Scanalyzed Rocket Array | -6/Factory | Hacked System Shield | -6/Factory | Hacked Lrn. Tractor Beam | -5/Factory | Scanalyzed Triangulator | -5/Factory | Scanalyzed Imp. Signal Interpreter | -5/Factory | Scanalyzed Imp. System Restoration Module | -5/Factory | Scanalyzed Imp. Remote Datajack | -5/Factory | Scanalyzed Field Propulsion Array | -5/Factory | Hacked Imp. Propulsion Shielding | -3/Research | Scanalyzed Robot Schematics ------------------ None Fabricated ------------ Arm. Huge Wheel | x2 | -7/Factory Remote Datajack | x1 | -7/Factory Remote Datajack | x1 | -6/Factory Arm. Huge Wheel | x2 | -6/Factory Arm. Huge Wheel | x2 | -4/Factory Alien Tech Used ----------------- None Achievements -------------- None Challenges ------------ None Game ------ Seed RemoteHypervelocityThruster Manual? 0 Play Time 05:31:36 Cumulative 110.1 hours Start 2024.05.15 @ 16:56:13 End 2024.05.15 @ 22:56:55 Sessions 1 Manual Loads 0 Difficulty Rogue Special Mode None Game No. 84 Rogue 45 Adventurer 32 Explorer 7 Win Type - Total 0 Types 0/0/0/0/0/0/0/0/0 Lore% 28 Gallery% 62 Achievement% 46 Wizard Run 0 Options --------- Layout 2 ASCII 0 Keyboard 0 Movement Numpad Keybinds 0 Fullscreen 2 Font 16/SmallcapsGlow Map View 50x44 Zoom Use 0% Tactical HUD 1 Map Filters NONE Filters NONE Steam SD RUN: 60761cb7-8371-4439-8bbc-2f6a99232a8d